bitfinex/quotes_ETHUSD_20240910
["timestamp","ask_amount","ask_price","bid_price","bid_amount"]
[1725953992372,3.22075177,2364.3,2363.5,2.4425]
[1725953992559,0.8869093,2363.7,2363.5,2.4425]
[1725953992753,0.8869093,2363.8,2363.5,2.68675]
[1725953992981,0.8869093,2364.0,2363.7,2.3202]
[1725953993230,0.8869093,2364.0,2363.8,0.08459587]
[1725953994133,0.8869093,2364.1,2363.8,0.08459587]
[1725953994431,0.8869093,2364.0,2363.9,2.3202]
[1725953994602,0.8869093,2364.0,2363.9,2.56067959]
[1725953995206,0.8869093,2364.1,2363.9,2.56067959]
[1725953995407,0.8869093,2364.1,2364.0,0.08459229]
[1725953995702,1.33036395,2364.1,2364.0,0.08459229]
[1725953997605,0.88753991,2364.2,2364.0,2.52719229]
[1725953997828,0.88753991,2364.2,2364.1,2.71936719]
[1725953998388,1.77381861,2364.2,2363.9,2.68307959]
[1725953998615,1.33141447,2364.1,2364.0,0.08459309]
[1725953998817,1.33141447,2364.1,2363.9,2.76767397]
[1725953999134,1.77381861,2364.2,2363.9,2.76767397]
[1725953999135,0.88760815,2364.0,2363.9,2.76767397]
[1725953999329,0.88760815,2364.1,2363.9,5.68307959]
[1725953999535,0.88760815,2364.1,2364.0,0.87676703]
[1725953999828,0.88760815,2364.1,2364.0,0.96135725]
[1725954000314,0.88760815,2364.1,2364.0,0.87676703]
[1725954000514,0.88760815,2364.1,2363.9,2.4426]
[1725954000741,0.88760815,2364.1,2363.7,2.4426]
[1725954000928,0.88760815,2364.1,2363.9,2.2827]
[1725954001114,0.88760815,2364.3,2364.0,2.36729119]
[1725954001318,0.88760815,2364.5,2364.2,2.2827]
[1725954001678,0.88760815,2364.7,2364.5,2.2827]
[1725954001953,0.88760815,2365.1,2364.7,2.2602]
[1725954002169,0.88760815,2365.0,2364.5,22.73]
[1725954002323,0.88760815,2364.9,2364.5,22.73]
[1725954002519,0.88760815,2365.0,2364.6,0.08456527]
[1725954002765,0.88760815,2364.9,2364.6,2.70747653]
[1725954003618,0.88760815,2365.0,2364.6,2.70747653]
[1725954004078,0.88760815,2364.9,2364.6,2.70747653]
[1725954004423,0.88760815,2365.0,2364.6,2.70747653]
[1725954004932,0.88760815,2364.9,2364.6,2.70747653]
[1725954005232,0.88760815,2364.7,2364.5,3.0]
[1725954005556,0.88760815,2364.6,2364.2,19.73]
[1725954006362,0.88760815,2364.5,2364.2,19.73]
[1725954006564,0.88760815,2364.6,2364.2,19.73]
[1725954006726,0.88760815,2364.4,2364.2,19.73]
[1725954008204,0.88760815,2364.3,2363.9,2.319]
[1725954008374,0.88760815,2364.3,2363.6,22.1057]
[1725954008576,0.88760815,2364.2,2363.7,3.170995]
[1725954009572,0.88760815,2364.1,2363.7,3.170995]
[1725954010617,0.88760815,2364.1,2363.6,22.1057]
[1725954010915,0.88760815,2364.0,2363.7,3.0]
[1725954011284,0.88760815,2364.0,2363.6,19.73]
[1725954013832,0.88760815,2364.0,2363.5,0.24425]
[1725954014040,0.88760815,2364.0,2363.5,3.24425]
[1725954014241,0.88760815,2364.0,2363.6,2.534995]
[1725954014605,0.88760815,2363.9,2363.6,2.534995]
[1725954015315,0.88760815,2364.0,2363.6,2.534995]
[1725954015516,0.88760815,2364.0,2363.5,3.24425]
[1725954018541,0.88760815,2363.9,2363.5,3.24425]
[1725954020541,0.88760815,2364.0,2363.6,0.08460077]
[1725954020859,0.88760815,2364.1,2363.7,2.3933]
[1725954021063,1.77381861,2364.3,2363.8,0.63459142]
[1725954021064,0.88760815,2364.3,2363.8,0.63459142]
[1725954021246,2.2566,2364.2,2363.8,3.0]
[1725954021417,0.88760815,2364.0,2363.5,0.24425]
[1725954021616,0.88760815,2364.0,2363.5,3.24425]
[1725954030702,0.88760815,2364.0,2363.5,3.19425]
[1725954031266,3.24680815,2363.9,2363.5,3.0]
[1725954031478,0.88760815,2363.8,2363.3,3.0]
[1725954031928,3.24680815,2363.9,2363.2,5.3065]
[1725954032134,0.88760815,2363.8,2363.3,0.61758739]
[1725954032439,0.88760815,2363.8,2363.3,3.61758739]
[1725954033069,3.24680815,2363.9,2363.3,3.61758739]
[1725954033269,0.88760815,2363.8,2363.3,3.61758739]
[1725954033642,0.88760815,2363.8,2363.4,0.72149841]
[1725954033843,1.77381861,2364.1,2363.4,0.72149841]
[1725954033844,0.88760815,2364.1,2363.5,2.4005]
[1725954034171,0.88760815,2364.1,2363.6,22.8094272]
[1725954034371,0.88760815,2364.1,2363.6,21.73]
[1725954035252,0.88760815,2364.1,2363.7,0.44469991]
[1725954035454,0.88760815,2364.1,2363.7,2.75751999]
[1725954036253,3.14300815,2364.0,2363.6,21.73]
[1725954036448,0.88760815,2364.0,2363.6,21.73]
[1725954036680,0.88760815,2364.0,2363.6,19.73]
[1725954036855,0.88760815,2363.9,2363.6,19.73]
[1725954037651,0.88760815,2363.9,2363.5,3.0]
[1725954037852,0.88760815,2363.9,2363.3,5.3771]
[1725954038152,0.88760815,2363.9,2363.4,3.44671]
[1725954038351,0.88760815,2363.9,2363.5,3.0]
[1725954038554,0.88760815,2363.9,2363.3,5.3771]
[1725954038861,0.88760815,2363.8,2363.3,5.3771]
[1725954039453,0.88760815,2363.9,2363.4,0.44485247]
[1725954039695,0.88760815,2363.9,2363.5,0.44485247]
[1725954039989,0.88760815,2363.9,2363.4,3.0]
[1725954040195,0.88760815,2363.8,2363.3,5.3771]
[1725954040492,0.88760815,2363.8,2363.3,9.18833518]
[1725954040689,3.14300815,2363.8,2363.3,9.18833518]
[1725954040851,3.14300815,2363.8,2363.3,3.0]
[1725954041213,3.14300815,2363.8,2363.2,3.0]
[1725954041968,0.88760815,2363.7,2363.1,0.4245]
[1725954042371,0.88760815,2363.6,2363.1,0.4245]
[1725954043075,0.88760815,2363.7,2363.1,0.4245]
[1725954043707,0.88760815,2363.6,2363.1,0.4245]
[1725954043895,0.88760815,2363.6,2363.1,1.93758]
[1725954044090,0.88760815,2363.6,2363.1,4.93758]
[1725954045899,0.88760815,2363.6,2363.1,3.4245]
[1725954046215,0.88760815,2363.6,2363.1,0.4245]
[1725954046378,0.88760815,2363.7,2363.1,0.4245]
[1725954046580,0.88760815,2363.6,2363.1,0.4245]
[1725954046909,0.88760815,2363.6,2363.3,3.22075177]
[1725954047096,0.88760815,2363.9,2363.4,6.14138634]
[1725954047425,0.88760815,2364.0,2363.4,6.14138634]
[1725954047568,0.88760815,2363.9,2363.4,6.14138634]
[1725954048187,0.88760815,2363.9,2363.5,0.08460559]
[1725954049373,0.88760815,2363.8,2363.5,0.08460559]
[1725954051076,0.88760815,2363.7,2363.5,0.08460559]
[1725954055018,1.88226167,2363.6,2363.5,0.08460559]
[1725954055221,0.88760815,2363.6,2363.5,0.66208559]
[1725954055581,0.88760815,2363.7,2363.4,5.5630105]
[1725954055783,0.88760815,2363.7,2363.5,0.662068]
[1725954056002,0.88760815,2363.7,2363.4,5.5630105]
[1725954056321,0.88760815,2363.7,2363.5,0.74667991]
[1725954056526,0.88760815,2363.7,2363.5,0.08460856]
[1725954058014,0.88760815,2363.7,2363.6,0.66206269]
[1725954058337,1.88232782,2363.7,2363.5,0.08460856]
[1725954058493,0.88760815,2363.7,2363.5,0.08460856]
[1725954058816,0.88760815,2363.7,2363.4,3.0]
[1725954058817,1.88289593,2363.6,2363.4,3.0]
[1725954059020,0.88817475,2363.6,2363.5,0.66210926]
[1725954059335,1.88292683,2363.6,2363.5,0.66209468]
[1725954059705,2.32616655,2363.6,2363.2,3.0]
[1725954059908,2.32616655,2363.6,2363.3,0.66211047]
[1725954059909,1.88293118,2363.5,2363.3,0.66211047]
[1725954060114,1.88293118,2363.5,2363.4,0.66211047]
[1725954060433,0.8881791,2363.6,2363.4,0.66211047]
[1725954060639,0.8881791,2363.6,2363.5,0.66211047]
[1725954060796,1.8829218,2363.6,2363.5,0.66211047]
[1725954061144,1.8829218,2363.6,2363.2,3.0]
[1725954061437,0.8881791,2363.6,2363.3,0.6620991]
[1725954061636,0.8881791,2363.6,2363.4,0.6620991]
[1725954061789,0.8881791,2363.6,2363.5,0.6620991]
[1725954061993,1.88288082,2363.6,2363.2,5.41864887]
[1725954062307,0.8881791,2363.6,2363.3,0.66208043]
[1725954062520,0.8881791,2363.6,2363.2,5.41864887]
[1725954062843,0.8881791,2363.6,2363.3,0.66209088]
[1725954063016,0.8881791,2363.6,2363.4,0.66209088]
[1725954063194,0.8881791,2363.6,2363.5,0.66209088]
[1725954063539,1.88293808,2363.6,2363.5,0.66209088]
[1725954066544,1.88292707,2363.6,2363.5,0.66209088]
[1725954066746,0.8881791,2363.6,2363.5,0.66209088]
[1725954067155,1.88290109,2363.6,2363.5,0.66209088]
[1725954069429,2.32613646,2363.6,2363.5,0.66209088]
[1725954069754,0.99472199,2363.6,2363.5,0.66209088]
[1725954070735,2.32613646,2363.6,2363.5,0.66209088]
[1725954071443,0.99659066,2363.6,2363.5,0.66209088]
[1725954071631,2.32800513,2363.6,2363.5,0.66209088]
[1725954072156,0.99659066,2363.6,2363.5,0.66209088]
[1725954072359,2.32800513,2363.6,2363.5,0.66209088]
[1725954072978,1.88505034,2363.6,2363.5,0.66209088]
[1725954073156,0.99659066,2363.6,2363.5,0.66209088]
[1725954073457,1.88508438,2363.6,2363.5,0.66209088]
[1725954073656,0.99659066,2363.6,2363.5,0.66209088]
[1725954073868,1.88507604,2363.6,2363.5,0.66209088]
[1725954074024,2.32800513,2363.6,2363.5,0.66209088]
[1725954074519,0.99659066,2363.6,2363.5,0.66209088]
[1725954074935,1.33141447,2363.7,2363.5,0.66209088]
[1725954075251,2.32810534,2363.6,2363.2,4.48680806]
[1725954075457,2.32810534,2363.6,2363.3,0.66208833]
[1725954075458,1.88524324,2363.5,2363.3,0.66208833]
[1725954075799,1.88524324,2363.5,2363.2,5.67030351]
[1725954075800,0.88855237,2363.5,2363.4,0.66208833]
[1725954076074,1.88528141,2363.5,2363.4,0.66208833]
[1725954076562,0.99675297,2363.5,2363.4,0.66208833]
[1725954076776,1.88534349,2363.5,2363.4,0.66208833]
[1725954078469,0.88859052,2363.6,2363.4,0.66208833]
[1725954078638,0.88859052,2363.6,2363.5,0.66208833]
[1725954078831,2.32817597,2363.6,2363.5,0.66208833]
[1725954080031,0.9967615,2363.6,2363.5,0.66208833]
[1725954080248,2.32817597,2363.6,2363.5,0.66208833]
[1725954081351,2.32779342,2363.6,2363.5,0.66208833]
[1725954081688,1.88512151,2363.6,2363.5,0.66208833]
[1725954081830,1.88501583,2363.6,2363.5,0.66208833]
[1725954082173,0.88874256,2363.7,2363.5,0.66208833]
[1725954082375,1.33141447,2363.8,2363.4,2.4186]
[1725954082376,1.33141447,2363.8,2363.6,0.74669637]
[1725954082668,0.99631906,2363.7,2363.6,0.08460804]
[1725954082870,1.88504853,2363.7,2363.6,0.66204535]
[1725954083076,2.32773353,2363.7,2363.6,0.66204535]
[1725954083234,2.32773353,2363.7,2363.6,0.97857071]
[1725954083481,2.32773353,2363.7,2363.6,3.97857071]
[1725954083482,1.88500765,2363.7,2363.6,3.97857071]
[1725954083696,1.88500765,2363.7,2363.6,0.66204535]
[1725954083697,2.77013767,2363.7,2363.6,0.66204535]
[1725954083904,4.09848831,2363.7,2363.1,4.17838176]
[1725954084221,0.88881637,2363.4,2363.2,3.0]
[1725954084378,0.99644648,2363.3,2363.1,0.4245]
[1725954084582,0.88881637,2363.3,2362.9,3.79678176]
[1725954084784,0.88881637,2363.3,2362.9,8.07255044]
[1725954085279,0.88881637,2363.3,2362.9,6.74836868]
[1725954085522,0.88881637,2363.3,2362.9,6.58589551]
[1725954085709,1.88528275,2363.2,2363.0,3.0]
[1725954085882,1.88534512,2363.1,2362.9,3.0]
[1725954086084,0.88881637,2363.1,2362.8,3.0]
[1725954086595,0.88881637,2363.1,2362.7,5.4068]
[1725954087198,1.88497315,2363.2,2362.7,5.4068]
[1725954087526,0.88881637,2363.2,2362.7,5.4068]
[1725954087725,1.8849547,2363.1,2362.7,5.4068]
[1725954087898,0.88881637,2363.1,2362.7,9.1800443]
[1725954088297,0.88881637,2363.2,2362.7,9.1800443]
[1725954088929,0.88881637,2363.2,2362.6,10.59564295]
[1725954088930,0.88881637,2363.0,2362.6,9.10883489]
[1725954089232,0.88881637,2363.0,2362.6,0.4245]
[1725954089233,3.33601637,2363.0,2362.6,0.4245]
[1725954090684,1.88450405,2362.9,2362.3,23.48700806]
[1725954090880,0.88881637,2362.9,2362.3,23.48700806]
[1725954091088,0.88881637,2362.9,2362.4,3.08470081]
[1725954092385,0.88881637,2362.9,2362.4,3.79682896]
[1725954092786,0.88881637,2362.9,2362.4,3.08470081]
[1725954093007,0.88881637,2362.9,2362.3,23.48700806]
[1725954093216,3.33601637,2363.0,2362.4,3.0]
[1725954093726,1.88362773,2362.9,2362.4,3.0]
[1725954093930,0.88881637,2362.9,2362.4,3.0]
[1725954094698,3.33601637,2363.0,2362.4,3.0]
[1725954094924,3.98032232,2363.0,2362.4,3.0]
[1725954097603,5.85196088,2362.9,2362.2,7.36]
[1725954097841,4.85792443,2362.9,2362.3,3.0]
[1725954098046,2.4823,2362.7,2362.3,3.0]
[1725954098249,3.20082174,2362.7,2362.3,3.0]
[1725954098940,3.37111637,2362.9,2362.3,4.57146161]
[1725954099144,2.4823,2362.9,2362.4,2.3194]
[1725954099302,2.4823,2362.9,2362.5,0.08464455]
[1725954100316,2.95273409,2362.9,2362.5,0.08464455]
[1725954101341,2.95273409,2362.9,2362.3,4.48680806]
[1725954105008,2.4823,2362.9,2362.3,4.48680806]
[1725954106010,0.88881637,2363.0,2362.5,3.84120806]
[1725954106242,2.2626,2363.1,2362.5,3.84120806]
[1725954112729,2.2626,2363.1,2362.4,0.08464868]
[1725954112959,3.15141637,2363.1,2362.4,0.08464868]
[1725954113150,0.44846409,2363.0,2362.4,0.08464868]
[1725954113658,0.44846409,2363.0,2362.3,5.3204]
[1725954113953,0.44846409,2363.0,2362.4,0.08464493]
[1725954114940,1.33728046,2363.0,2362.4,0.08464493]
[1725954115254,0.44846409,2363.0,2362.4,0.08464493]
[1725954115417,0.50866885,2362.9,2362.4,0.08464493]
[1725954115623,0.50866885,2362.9,2362.3,3.0]
[1725954115624,2.81696885,2362.9,2362.3,3.0]
[1725954116666,3.70578522,2362.9,2362.3,3.0]
[1725954117955,2.81696885,2362.9,2362.3,3.0]
[1725954118147,3.70578522,2362.9,2362.3,3.0]
[1725954118460,2.81696885,2362.9,2362.3,3.0]
[1725954118655,3.70578522,2362.9,2362.3,3.0]
[1725954118860,3.70578522,2362.9,2362.2,3.0]
[1725954119227,3.70578522,2362.9,2362.2,6.59932081]
[1725954120334,3.70578522,2362.9,2362.3,0.0846491]
[1725954120545,3.70578522,2362.9,2362.2,6.59932081]
[1725954121060,0.88881637,2362.8,2362.2,3.0]
[1725954121228,3.26971637,2362.7,2362.2,3.0]
[1725954121428,2.3809,2362.7,2362.2,3.0]
[1725954122537,3.26971637,2362.7,2362.0,7.36]
[1725954122868,0.88881637,2362.6,2362.1,3.0]
[1725954123048,0.88881637,2362.6,2361.9,3.0]
[1725954124472,0.88881637,2362.5,2361.9,3.0]
[1725954124763,2.3809,2362.4,2361.9,3.0]
[1725954125725,0.88881637,2362.6,2362.2,2.2725]
[1725954125972,0.88881637,2362.8,2362.2,2.35715509]
[1725954126523,0.88881637,2362.8,2362.2,5.35715509]
[1725954127536,0.88881637,2362.7,2362.2,5.35715509]
[1725954127735,0.88881637,2362.7,2362.3,0.44536979]
[1725954127941,0.88881637,2362.8,2362.3,0.44536979]
[1725954128272,0.88881637,2362.7,2362.3,0.44536979]
[1725954128426,0.88881637,2362.7,2362.2,5.2725]
[1725954130437,0.88881637,2362.7,2362.2,5.35715516]
[1725954131373,0.88881637,2362.6,2362.2,5.35715516]
[1725954132285,0.88881637,2362.6,2362.2,5.2725]
[1725954133538,0.88881637,2362.6,2362.2,5.3571552]
[1725954134341,0.88881637,2362.5,2362.2,5.3571552]
[1725954134577,0.88881637,2362.6,2362.2,5.3571552]
[1725954135371,0.88881637,2362.6,2362.2,6.41699771]
[1725954135570,0.88881637,2362.6,2362.2,5.3571552]
[1725954135770,0.88881637,2362.6,2362.2,6.41700287]
[1725954135988,0.88881637,2362.5,2362.2,6.33234767]
[1725954137081,0.88881637,2362.6,2362.2,6.33234767]
[1725954137282,0.88881637,2362.5,2362.2,6.33234767]
[1725954139342,0.88881637,2362.5,2362.2,6.33236587]
[1725954141285,0.88881637,2362.5,2362.2,5.2725]
[1725954141577,0.88881637,2362.5,2362.2,2.2725]
[1725954141784,0.88881637,2362.5,2362.2,3.33236587]
[1725954142840,0.88881637,2362.5,2362.2,2.2725]
[1725954143041,0.88881637,2362.5,2362.2,3.33237564]
[1725954143282,0.88881637,2362.5,2362.3,1.05987564]
[1725954144196,0.88881637,2362.5,2362.4,0.66242051]
[1725954145600,4.14571051,2362.5,2362.0,3.0]
[1725954145902,0.88862874,2362.3,2362.1,0.66247233]
[1725954146116,0.88862874,2362.3,2362.2,0.66247233]
[1725954146972,1.56944453,2362.3,2362.2,0.66247233]
[1725954147290,4.39644035,2362.3,2361.7,7.36]
[1725954147489,2.3824,2362.0,2361.8,0.66253085]
[1725954147721,0.32709011,2361.9,2361.4,7.36]
[1725954147878,0.88850107,2361.9,2361.5,0.6626081]
[1725954148079,0.88850107,2361.9,2361.6,0.6626081]
[1725954148275,0.88850107,2361.9,2361.4,7.36]
[1725954148276,0.88850107,2361.9,2361.7,0.6626081]
[1725954148506,0.88850107,2361.8,2361.5,0.66261467]
[1725954148692,0.88850107,2361.8,2361.6,0.66261467]
[1725954149017,2.4002,2361.7,2361.5,0.66261467]
[1725954149186,0.88850107,2361.8,2361.6,0.66264604]
[1725954149385,0.88850107,2361.8,2361.5,2.477]
[1725954149386,0.88850107,2361.9,2361.5,3.22429995]
[1725954149589,0.88850107,2361.9,2361.5,2.56168216]
[1725954149804,0.88850107,2362.0,2361.6,0.66261764]
[1725954150004,1.6767563,2362.0,2361.6,0.66261764]
[1725954150177,0.88850107,2361.9,2361.6,0.66261764]
[1725954150373,1.6767563,2362.0,2361.6,0.66261764]
[1725954150576,0.88850107,2362.0,2361.6,0.66261764]
[1725954150893,3.28870107,2362.1,2361.6,0.66261764]
[1725954151502,3.28870107,2362.1,2361.5,3.2242998]
[1725954151824,0.88850107,2362.0,2361.5,3.2242998]
[1725954153202,0.88850107,2362.0,2361.5,2.477]
[1725954153397,0.46219256,2361.9,2361.5,2.477]
[1725954153701,0.88850107,2362.0,2361.5,2.477]
[1725954154399,4.77550913,2362.1,2361.5,2.477]
[1725954154739,3.21200107,2362.0,2361.4,7.36]
[1725954154934,0.88850107,2361.9,2361.4,7.36]
[1725954156230,3.21200107,2362.0,2361.4,7.36]
[1725954156725,0.88850107,2362.4,2361.8,1.48680806]
[1725954157027,3.61192456,2362.6,2361.9,0.0846684]
[1725954157028,0.88850107,2362.5,2361.9,0.0846684]
[1725954157817,3.16720107,2362.6,2361.9,0.0846684]
[1725954158033,0.53857432,2362.5,2361.9,0.0846684]
[1725954158329,1.42707539,2362.5,2361.9,0.0846684]
[1725954159988,0.88850107,2362.4,2361.9,0.0846684]
[1725954160303,0.88850107,2362.4,2361.7,3.66262562]
[1725954160304,0.88850107,2362.4,2361.8,0.0846685]
[1725954160450,0.88850107,2362.5,2361.9,2.3034]
[1725954160649,0.88850107,2362.5,2361.9,5.3034]
[1725954160845,0.88850107,2362.5,2362.0,0.08466848]
[1725954161047,0.88850107,2362.6,2362.0,1.57147654]
[1725954161286,0.88850107,2362.6,2362.2,2.2903]
[1725954161456,0.88850107,2362.6,2362.2,2.37495599]
[1725954161648,0.88850107,2362.7,2362.3,0.08465599]
[1725954161875,1.77381861,2362.9,2362.4,1.48680806]
[1725954161876,0.88850107,2362.9,2362.4,1.48680806]
[1725954162089,0.88850107,2362.8,2362.4,1.48680806]
[1725954162863,0.88850107,2362.8,2362.3,0.08465599]
[1725954163087,1.28805549,2362.8,2362.2,5.2903]
[1725954163244,0.88850107,2362.7,2362.2,5.37495425]
[1725954163448,0.88850107,2362.7,2362.2,5.2903]
[1725954163888,3.37640107,2362.7,2362.2,5.2903]
[1725954164093,3.37640107,2362.7,2362.2,3.0]
[1725954164302,1.54809988,2362.6,2362.1,3.0]
[1725954164502,1.54809988,2362.6,2362.0,10.45792119]
[1725954164503,4.3681325,2362.6,2362.0,10.45792119]
[1725954164817,0.88850107,2362.5,2362.0,7.36]
[1725954165101,3.86950806,2362.4,2362.0,7.36]
[1725954165300,4.75800913,2362.4,2361.9,19.73]
[1725954165510,3.86950806,2362.4,2361.9,19.73]
[1725954165866,3.86950806,2362.4,2361.6,9.6474]
[1725954165867,4.75800913,2362.4,2361.6,9.6474]
[1725954166088,3.27120107,2362.4,2361.7,0.66253454]
[1725954166285,1.43524214,2362.3,2361.7,3.66253454]
[1725954167091,0.54674107,2362.3,2361.7,3.0]
[1725954167298,0.54674107,2362.3,2361.8,0.66253201]
[1725954167529,0.54674107,2362.3,2361.7,3.66253201]
[1725954167905,0.54674107,2362.3,2361.8,0.66253201]
[1725954168393,1.43524214,2362.3,2361.7,3.66253201]
[1725954168594,0.54674107,2362.3,2361.7,3.66253201]
[1725954168891,0.54674107,2362.3,2361.8,0.66253201]
[1725954169121,1.43524214,2362.3,2361.8,0.66253201]
[1725954169327,1.43524214,2362.3,2361.7,3.66253201]
[1725954169328,0.38179421,2362.2,2361.7,3.66253201]
[1725954169494,0.38179421,2362.2,2361.7,0.66253201]
[1725954169690,1.27029528,2362.2,2361.6,2.2874]
[1725954169912,0.31502609,2362.1,2361.6,2.2874]
[1725954170119,3.27650107,2362.0,2361.4,0.66253201]
[1725954170291,0.88850107,2361.9,2361.3,0.66253201]
[1725954170491,0.88850107,2361.9,2361.2,2.3498]
[1725954170492,0.46097256,2361.8,2361.2,2.3498]
[1725954170692,1.34947363,2361.8,2361.2,2.3498]
[1725954171917,1.34947363,2361.8,2361.2,5.3498]
[1725954172296,0.46097256,2361.8,2361.2,5.3498]
[1725954172498,0.46097256,2361.8,2361.2,2.3498]
[1725954172723,1.34947363,2361.8,2361.2,2.3498]
[1725954172920,0.26826982,2361.7,2361.2,2.3498]
[1725954173104,0.26826982,2361.7,2361.1,3.08469532]
[1725954173526,0.26826982,2361.7,2361.1,0.08469532]
[1725954174149,0.26826982,2361.7,2361.1,3.08469532]
[1725954174453,0.46097256,2361.8,2361.1,0.08469532]
[1725954174626,0.46097256,2361.8,2361.2,3.0]
[1725954174826,0.46097256,2361.8,2361.1,0.08469532]
[1725954176951,2.2608,2361.7,2361.1,0.08469532]
[1725954177152,3.14930107,2361.7,2360.9,3.0]
[1725954177309,0.27217726,2361.6,2360.9,3.0]
[1725954177514,0.27217726,2361.6,2361.0,0.08469976]
[1725954178322,2.2608,2361.7,2361.0,0.08469976]
[1725954180820,2.2608,2361.7,2361.1,2.2832]
[1725954181024,0.88850107,2361.9,2361.2,0.08469542]
[1725954181229,3.37400107,2362.0,2361.2,0.08469542]
[1725954181431,3.37400107,2362.0,2361.2,3.08469542]
[1725954181629,3.37400107,2362.0,2361.3,0.08468973]
[1725954183752,2.393,2361.9,2361.2,3.85940185]
[1725954183953,3.28150107,2361.9,2361.2,3.0]
[1725954184139,3.28150107,2361.9,2361.2,0.08468981]
[1725954184555,3.28150107,2361.8,2361.0,3.0]
[1725954184758,3.28150107,2361.7,2360.9,3.08470272]
[1725954184978,2.393,2361.7,2360.9,4.81508395]
[1725954186242,2.393,2361.7,2361.0,2.8189]
[1725954186439,2.393,2361.7,2361.1,3.08468987]
[1725954189434,3.22780107,2361.9,2361.1,3.08468987]
[1725954189640,2.3393,2361.9,2361.1,3.08468987]
[1725954189938,2.3393,2361.9,2361.3,2.4367]
[1725954190129,2.3393,2361.9,2361.3,2.52139005]
[1725954191735,0.88850107,2362.0,2361.3,5.74751312]
[1725954191936,3.19010107,2362.3,2361.5,5.22612307]
[1725954192093,2.3016,2362.3,2361.6,3.53507124]
[1725954192297,3.21470107,2362.5,2361.9,3.22612307]
[1725954192507,2.3262,2362.5,2362.0,0.08466178]
[1725954193493,3.21470107,2362.5,2362.0,0.08466178]
[1725954194252,2.3262,2362.5,2362.0,0.08466178]
[1725954195143,2.3262,2362.5,2362.0,0.71366234]
[1725954195997,3.31660107,2362.7,2362.0,0.71366234]
[1725954196227,0.88850107,2362.6,2362.0,0.71366234]
[1725954197546,3.31660107,2362.7,2362.0,0.71366234]
[1725954197743,3.95896549,2362.7,2362.0,0.71366234]
[1725954198470,0.88850107,2362.7,2362.1,5.51362307]
[1725954198767,0.88850107,2362.8,2362.2,3.08465363]
[1725954198976,3.15160107,2362.9,2362.3,0.08465373]
[1725954199180,0.35963246,2362.8,2362.3,0.08465373]
[1725954200645,3.15160107,2362.9,2362.3,0.08465373]
[1725954202036,3.14260107,2362.8,2362.2,3.0]
[1725954202254,3.14260107,2362.8,2362.0,3.0]
[1725954202777,2.2541,2362.7,2362.0,3.0]
[1725954202960,0.31426011,2362.6,2362.0,3.0]
[1725954203807,3.38560107,2362.5,2361.7,9.7866]
[1725954204333,6.61172414,2362.4,2361.7,7.36]
[1725954204495,2.4971,2362.4,2361.7,7.36]
[1725954205394,2.4971,2362.4,2361.9,2.50556816]
[1725954205624,3.50576118,2362.6,2361.9,5.78773728]
[1725954205910,3.50576118,2362.6,2361.9,2.50556816]
[1725954206801,2.61726011,2362.6,2361.9,2.50556816]
[1725954207029,3.50576118,2362.6,2361.9,2.50556816]
[1725954208131,3.50576118,2362.6,2361.9,2.4209]
[1725954208803,3.50576118,2362.6,2361.8,3.0]
[1725954209112,0.48389857,2362.5,2361.8,3.0]
[1725954209308,2.388,2362.4,2361.8,3.0]
[1725954210110,2.388,2362.4,2361.8,3.08466854]
[1725954210312,1.64748467,2362.6,2361.8,3.08466854]
[1725954210313,3.30530107,2362.6,2361.8,3.08466854]
[1725954211101,1.88590185,2362.5,2361.8,3.08466854]
[1725954211301,3.75002456,2362.6,2361.8,3.0]
[1725954211302,2.3152,2362.3,2361.8,3.0]
[1725954211543,2.3152,2362.3,2361.7,7.36]
[1725954211824,3.20370107,2362.3,2361.7,7.36]
[1725954212244,2.2702,2362.2,2361.7,7.36]
[1725954213539,3.15870107,2362.2,2361.7,7.36]
[1725954213740,2.77575183,2362.2,2361.7,7.36]
[1725954214116,3.6642529,2362.2,2361.7,7.36]
[1725954214310,3.6642529,2362.2,2361.4,22.73]
[1725954214538,3.6642529,2362.2,2361.5,3.0]
[1725954214703,3.6642529,2362.2,2361.4,3.0]
[1725954214905,3.6642529,2362.2,2361.3,9.6852]
[1725954214906,4.82591105,2362.1,2361.3,9.6852]
[1725954215108,1.88620114,2362.0,2361.3,9.6852]
[1725954215346,0.88850107,2362.0,2361.3,9.6852]
[1725954216006,3.82824882,2362.1,2361.4,0.08469126]
[1725954216206,3.32850107,2362.1,2361.4,1.45552883]
[1725954216802,2.44,2362.1,2361.4,1.45552883]
[1725954217003,3.32850107,2362.1,2361.4,1.45552883]
[1725954217249,1.88616952,2362.0,2361.4,1.45552883]
[1725954217445,0.88850107,2362.0,2361.4,1.45552883]
[1725954217752,3.32850107,2362.1,2361.5,4.66280826]
[1725954218055,0.88850107,2362.3,2361.7,3.22612307]
[1725954218201,0.88850107,2362.5,2361.9,3.22612307]
[1725954218521,0.88850107,2362.5,2362.0,0.0846642]
[1725954218717,3.23460107,2362.6,2362.0,2.68854293]
[1725954219663,0.88850107,2362.6,2362.1,3.22612307]
[1725954219867,0.88850107,2362.7,2362.2,3.08465622]
[1725954220370,0.88850107,2362.8,2362.2,3.08465622]
[1725954220607,1.88586055,2362.7,2362.2,3.08465622]
[1725954220808,0.88850107,2362.7,2362.3,0.08465623]
[1725954221163,0.88850107,2362.8,2362.3,0.08465623]
[1725954222003,0.88850107,2362.8,2362.4,2.4511]
[1725954222312,0.88850107,2362.8,2362.5,0.08464593]
[1725954222815,0.88850107,2362.9,2362.5,0.08464593]
[1725954222984,0.88850107,2363.0,2362.5,0.08464593]
[1725954225226,0.88850107,2363.0,2362.4,2.4511]
[1725954227513,0.88850107,2363.0,2362.5,0.08464247]
[1725954228020,0.88850107,2363.0,2362.5,6.31076554]
[1725954228190,0.88850107,2363.0,2362.6,0.87618655]
[1725954230920,0.88850107,2363.1,2362.6,0.87618655]
[1725954231830,3.79062456,2363.2,2362.6,0.87618655]
[1725954231831,1.88579414,2363.0,2362.6,0.87618655]
[1725954232014,0.88850107,2363.0,2362.6,0.87618655]
[1725954232175,0.88850107,2363.1,2362.7,3.22612307]
[1725954232379,0.88850107,2363.3,2362.9,3.22612307]
[1725954232686,0.88850107,2363.3,2362.8,2.37384143]
[1725954232888,3.36670107,2363.3,2362.8,5.37384143]
[1725954233135,3.36670107,2363.3,2362.8,3.08463246]
[1725954233614,3.36670107,2363.3,2362.8,3.0]
[1725954234279,3.83669363,2363.3,2362.8,3.0]
[1725954234479,3.83669363,2363.3,2362.7,0.08463642]
[1725954234823,3.83669363,2363.3,2362.6,4.53842678]
[1725954234989,3.36670107,2363.3,2362.7,0.08463642]
[1725954235582,3.36670107,2363.3,2362.7,3.31075949]